fUST/lending_fUST_20240823
["ID","MTS","AMOUNT","RATE_DAILY","PERIOD"]
[335678974,1724423445314,-656.253367,0.00017489,2]
[335678976,1724423445327,-656.253367,0.00017489,2]
[335678978,1724423445337,-656.253367,0.00017489,2]
[335678981,1724423445349,-1438.519583,0.00017489,2]
[335678983,1724423445362,-656.253367,0.00017489,2]
[335678985,1724423445372,-1438.519583,0.00017489,2]
[335678987,1724423445382,-656.253367,0.00017489,2]
[335678989,1724423445392,-1438.519583,0.00017489,2]
[335678991,1724423445401,-656.253367,0.00017489,2]
[335678993,1724423445411,-1438.519583,0.00017489,2]
[335678995,1724423445421,-656.253367,0.00017489,2]
[335678997,1724423445431,-1438.519583,0.00017489,2]
[335678999,1724423445442,-656.253367,0.00017489,2]
[335679001,1724423445452,-1438.519583,0.00017489,2]
[335679003,1724423445462,-656.253367,0.00017489,2]
[335679005,1724423445471,-656.253366,0.00017489,2]
[335679007,1724423445481,-1438.519583,0.00017489,2]
[335679009,1724423445491,-1438.519583,0.00017489,2]
[335679011,1724423445500,-1438.519583,0.00017489,2]
[335679013,1724423445511,-1438.519583,0.00017489,2]
[335679014,1724423445522,-1438.519583,0.00017489,2]
[335679015,1724423445532,-1438.519583,0.00017489,2]
[335679017,1724423445542,-1438.519583,0.00017489,2]
[335679019,1724423445552,-1438.519583,0.00017489,2]
[335679020,1724423445562,-1438.519583,0.00017489,2]
[335679021,1724423445572,-1438.519583,0.00017489,2]
[335679022,1724423445582,-1438.519583,0.00017489,2]
[335679024,1724423445592,-1438.519583,0.00017489,2]
[335679026,1724423445602,-1438.519583,0.00017489,2]
[335679028,1724423445616,-1438.51959,0.00017489,2]
[335679030,1724423445626,-214.636255,0.00017489,2]
[335679032,1724423445636,-214.636255,0.00017489,2]
[335679033,1724423445645,-214.636255,0.00017489,2]
[335679034,1724423445655,-214.636255,0.00017489,2]
[335679036,1724423445665,-214.636255,0.00017489,2]
[335679037,1724423445675,-214.636255,0.00017489,2]
[335679038,1724423445685,-1886.682576,0.00017489,2]
[335679039,1724423445695,-214.636255,0.00017489,2]
[335679041,1724423445705,-1886.682576,0.00017489,2]
[335679043,1724423445715,-214.636255,0.00017489,2]
[335679045,1724423445725,-214.636255,0.00017489,2]
[335679047,1724423445735,-1886.682576,0.00017489,2]
[335679049,1724423445745,-214.636255,0.00017489,2]
[335679050,1724423445756,-1886.682576,0.00017489,2]
[335679051,1724423445766,-214.636255,0.00017489,2]
[335679052,1724423445776,-1886.682576,0.00017489,2]
[335679053,1724423445786,-1886.682576,0.00017489,2]
[335679055,1724423445796,-1886.682576,0.00017489,2]
[335679057,1724423445807,-1886.682576,0.00017489,2]
[335679058,1724423445817,-214.636255,0.00017489,2]
[335679060,1724423445827,-1886.682576,0.00017489,2]
[335679061,1724423445837,-214.636255,0.00017489,2]
[335679062,1724423445846,-1886.68258,0.00017489,2]
[335679063,1724423445857,-214.636255,0.00017489,2]
[335679064,1724423445867,-214.636255,0.00017489,2]
[335679065,1724423445877,-214.636255,0.00017489,2]
[335679066,1724423445887,-214.636255,0.00017489,2]
[335679067,1724423445896,-214.636255,0.00017489,2]
[335679068,1724423445906,-214.636255,0.00017489,2]
[335679070,1724423445916,-214.636264,0.00017489,2]
[335679072,1724423445926,-2659.328724,0.00017489,2]
[335679075,1724423445945,-2659.328724,0.00017489,2]
[335679077,1724423445958,-2659.328724,0.00017489,2]
[335679080,1724423445969,-2659.328724,0.00017489,2]
[335679082,1724423445979,-2659.328724,0.00017489,2]
[335679084,1724423445989,-2659.328724,0.00017489,2]
[335679085,1724423445999,-2659.328724,0.00017489,2]
[335679087,1724423446009,-2659.328724,0.00017489,2]
[335679089,1724423446019,-2659.328724,0.00017489,2]
[335679091,1724423446029,-2659.328724,0.00017489,2]
[335679092,1724423446039,-2659.328724,0.00017489,2]
[335679095,1724423446049,-2659.328724,0.00017489,2]
[335679096,1724423446059,-2659.328724,0.00017489,2]
[335679098,1724423446070,-257.19178474,0.00017489,2]
[335679132,1724423447165,-509.04,0.00017,2]
[335679134,1724423447176,-2402.13693926,0.00017489,2]
[335679136,1724423447186,-2078.73548275,0.00017489,2]
[335679182,1724423521927,173.689593,0.00014247,2]
[335679202,1724424353155,-954.91831943,0.00013051,2]
[335679203,1724424354826,991.61536946,0.00012999,2]
[335679204,1724424358129,-817.18993944,0.00013051,2]
[335679205,1724424358151,-210.99102179,0.00013333,2]
[335679206,1724424358173,-177.70257601,0.00013497,2]
[335679207,1724424358196,-475.283463,0.00014247,2]
[335679208,1724424358218,-243.32152024,0.00014519,2]
[335679209,1724424358240,-362.7207952,0.00015,2]
[335679218,1724424435174,-637.2792048,0.00015,2]
[335679219,1724424435195,-1205.4154202,0.00015473,2]
[335679220,1724424435216,-283.359223,0.00015593,2]
[335679221,1724424435237,-6921.9455151,0.00015634,2]
[335679222,1724424435259,-300.0,0.00015766,2]
[335679223,1724424435280,-3000.0,0.00015767,2]
[335679224,1724424435303,-760.0,0.00016,2]
[335679225,1724424435323,-500.0,0.00016438,2]
[335679226,1724424435344,-307.5054193,0.00016541,2]
[335679227,1724424435365,-207.6241733,0.00016693,2]
[335679228,1724424435386,-153.0,0.00016732,2]
[335679229,1724424435407,-153.0,0.00016732,2]
[335679230,1724424435428,-153.0,0.00016732,2]
[335679231,1724424435449,-380.0,0.0001687,2]
[335679232,1724424435469,-207.6636928,0.000169,2]
[335679233,1724424435491,-380.0,0.00016965,2]
[335679234,1724424435512,-1111.52616931,0.00016985,2]
[335679235,1724424435532,-1000.0,0.00017,17]
[335679236,1724424435555,-465.06252787,0.00017005,2]
[335679237,1724424435574,-380.0,0.0001706,2]
[335679238,1724424435595,-207.6636928,0.00017151,2]
[335679239,1724424435616,-153.0,0.00017151,2]
[335679240,1724424435636,-207.7006306,0.00017151,2]
[335679241,1724424435657,-207.7006306,0.00017151,2]
[335679242,1724424435677,-153.0,0.00017151,2]
[335679243,1724424435698,-380.0,0.00017155,2]
[335679244,1724424435725,-151.95554166,0.00017178,2]
[335679245,1724424435748,-3603.52793275,0.00017186,2]
[335679246,1724424450108,-991.38842768,0.00014519,2]
[335679247,1724424450130,-1111.52616931,0.00016977,2]
[335679248,1724424450152,-5507.38617281,0.00017075,2]
[335679249,1724424450173,-380.0,0.0001725,2]
[335679250,1724424450194,-255.2975683,0.00017276,2]
[335679251,1724424450217,-420.0,0.00017342,2]
[335679252,1724424450239,-4982.4660481,0.00017342,5]
[335679253,1724424450262,-380.0,0.00017345,2]
[335679254,1724424450284,-650.91791075,0.0001738,2]
[335679255,1724424450305,-40000.0,0.00017389,2]
[335679256,1724424450327,-2000.0,0.000174,2]
[335679257,1724424450349,-3000.0,0.000174,2]
[335679258,1724424450370,-3000.0,0.0001741,2]
[335679259,1724424450390,-650.91791073,0.0001741,2]
[335679260,1724424450411,-2684.55670231,0.0001742,2]
[335679267,1724424548101,-209.73889129,0.00014245,2]
[335679268,1724424556458,1327.16,0.00027,120]
[335679277,1724424630380,170.020842,0.00014247,2]
[335679344,1724424632659,-611.72,0.00016427,2]
[335679358,1724424632817,-2388.28,0.00016427,2]
[335679360,1724424632827,-277.76886237,0.00017299,2]
[335679362,1724424632838,-155.0,0.0001738,2]
[335679364,1724424632848,-315.44329769,0.0001742,2]
[335679366,1724424632857,-300.0,0.00017429,2]
[335679367,1724424632867,-3000.0,0.0001743,2]
[335679369,1724424632878,-898.44749661,0.0001743,2]
[335679376,1724424633361,-2033.69032766,0.0001743,2]
[335679377,1724424633371,-40000.0,0.0001743,2]
[335679378,1724424633381,-3000.0,0.0001744,2]
[335679379,1724424633390,-380.0,0.0001744,2]
[335679380,1724424633400,-650.91791073,0.0001744,2]
[335679381,1724424633409,-3000.0,0.0001745,2]
[335679382,1724424633419,-3000.0,0.0001746,2]
[335679383,1724424633429,-3000.0,0.0001747,2]
[335679384,1724424633439,-650.91791073,0.0001747,2]
[335679385,1724424633450,-282.69865686,0.00017478,2]
[335679386,1724424633460,-500.0,0.00017478,2]
[335679387,1724424633470,-500.0,0.00017478,2]
[335679388,1724424633479,-537.6596926,0.00017478,2]
[335679389,1724424633489,-170.85107695,0.00017478,2]
[335679390,1724424633498,-69787.95131234,0.00017479,2]
[335679421,1724424638619,-18362.89296126,0.00017479,2]
[335679424,1724424638630,-3000.0,0.0001748,2]
[335679426,1724424638639,-158.22835326,0.00017488,2]
[335679428,1724424638649,-5678.82973317,0.00017488,2]
[335679430,1724424638658,-221.279929,0.00017489,2]
[335679431,1724424638667,-310.0,0.00017489,2]
[335679433,1724424638677,-310.0,0.00017489,2]
[335679435,1724424638686,-310.0,0.00017489,2]
[335679437,1724424638695,-310.0,0.00017489,2]
[335679439,1724424638705,-310.0,0.00017489,2]
[335679441,1724424638715,-310.0,0.00017489,2]
[335679443,1724424638725,-265.128871,0.00017489,2]
[335679445,1724424638734,-216.79895,0.00017489,2]
[335679447,1724424638743,-216.79895,0.00017489,2]
[335679449,1724424638753,-216.79895,0.00017489,2]
[335679451,1724424638770,-216.79895,0.00017489,2]
[335679453,1724424638783,-216.79895,0.00017489,2]
[335679455,1724424638793,-216.79895,0.00017489,2]
[335679457,1724424638803,-216.79895,0.00017489,2]
[335679459,1724424638812,-216.79895,0.00017489,2]
[335679461,1724424638823,-216.79895,0.00017489,2]
[335679463,1724424638832,-216.79895,0.00017489,2]
[335679465,1724424638842,-216.79895,0.00017489,2]
[335679467,1724424638851,-216.79895,0.00017489,2]
[335679468,1724424638860,-216.79895,0.00017489,2]
[335679470,1724424638872,-216.79895,0.00017489,2]
[335679472,1724424638882,-216.79895,0.00017489,2]
[335679474,1724424638892,-216.79895,0.00017489,2]
[335679476,1724424638901,-216.79895,0.00017489,2]
[335679478,1724424638910,-216.79895,0.00017489,2]
[335679480,1724424638919,-216.79895,0.00017489,2]
[335679482,1724424638928,-216.79894727,0.00017489,2]
[335679484,1724424638937,-251.47809,0.00017489,2]
[335679486,1724424638946,-176.476235,0.00017489,2]
[335679488,1724424638955,-176.476235,0.00017489,2]
[335679490,1724424638965,-151.0,0.00017489,2]
[335679492,1724424638974,-151.0,0.00017489,2]
[335679494,1724424638983,-151.0,0.00017489,2]
[335679496,1724424638992,-151.0,0.00017489,2]
[335679498,1724424639001,-1516.826158,0.00017489,2]
[335679500,1724424639027,-1516.826158,0.00017489,2]
[335679502,1724424639037,-151.0,0.00017489,2]
[335679504,1724424639046,-343.568436,0.00017489,2]
[335679506,1724424639058,-343.568436,0.00017489,2]
[335679508,1724424639067,-2551.847542,0.00017489,2]
[335679510,1724424639076,-2551.847542,0.00017489,2]
[335679512,1724424639086,-2847.328353,0.00017489,2]
[335679514,1724424639096,-2847.328353,0.00017489,2]
[335679516,1724424639106,-219.155997,0.00017489,2]
[335679518,1724424639117,-151.0,0.00017489,2]
[335679520,1724424639126,-219.155997,0.00017489,2]
[335679522,1724424639135,-151.0,0.00017489,2]
[335679524,1724424639144,-824.774778,0.00017489,2]
[335679526,1724424639154,-824.774778,0.00017489,2]
[335679528,1724424639163,-2219.405517,0.00017489,2]
[335679529,1724424639172,-2219.405517,0.00017489,2]
[335679532,1724424639181,-2435.285103,0.00017489,2]
[335679534,1724424639191,-2435.285103,0.00017489,2]
[335679535,1724424639200,-3000.0,0.0001749,2]
[335679537,1724424639210,-44075.4221368,0.0001749,2]
[335679539,1724424639219,-153.0,0.00017493,2]
[335679542,1724424639229,-153.0,0.00017493,2]
[335679543,1724424639239,-213.126,0.00017498,2]
[335679545,1724424639248,-150.104,0.00017498,2]
[335679547,1724424639259,-150.112233,0.000175,2]
[335679549,1724424639274,-150.112233,0.000175,2]
[335679551,1724424639284,-150.112233,0.000175,2]
[335679553,1724424639295,-150.112233,0.000175,2]
[335679555,1724424639306,-150.112233,0.000175,2]
[335679557,1724424639317,-150.112233,0.000175,2]
[335679559,1724424639328,-150.112233,0.000175,2]
[335679561,1724424639339,-150.112233,0.000175,2]
[335679563,1724424639350,-150.112233,0.000175,2]
[335679565,1724424639360,-173.50529,0.000175,2]
[335679567,1724424639370,-150.112233,0.000175,2]
[335679569,1724424639380,-150.112235,0.000175,2]
[335679571,1724424639389,-176.476235,0.000175,2]
[335679573,1724424639399,-176.476235,0.000175,2]
[335679574,1724424639408,-151.0,0.000175,2]
[335679576,1724424639417,-151.0,0.000175,2]
[335679578,1724424639427,-151.0,0.000175,2]
[335679580,1724424639435,-151.0,0.000175,2]
[335679582,1724424639446,-1516.826158,0.000175,2]
[335679584,1724424639455,-1516.826158,0.000175,2]
[335679586,1724424639464,-151.0,0.000175,2]
[335679588,1724424639473,-343.568436,0.000175,2]
[335679590,1724424639482,-343.568436,0.000175,2]
[335679592,1724424639492,-3000.0,0.000175,2]
[335679594,1724424639501,-7273.859402,0.000175,2]
[335679619,1724424639723,-150.112233,0.000175,2]
[335679621,1724424639733,-150.112233,0.000175,2]
[335679623,1724424639743,-150.112233,0.000175,2]
[335679625,1724424639752,-150.112233,0.000175,2]
[335679627,1724424639766,-7273.859402,0.000175,2]
[335679629,1724424639776,-159.929082,0.000175,2]
[335679631,1724424639785,-159.929082,0.000175,2]
[335679633,1724424639794,-151.0,0.000175,2]
[335679635,1724424639806,-275.994204,0.000175,2]
[335679637,1724424639815,-275.994204,0.000175,2]
[335679639,1724424639824,-3007.864424,0.000175,2]
[335679641,1724424639833,-151.0,0.000175,2]
[335679642,1724424639842,-3007.864424,0.000175,2]
[335679644,1724424639855,-214.636255,0.000175,2]
[335679645,1724424639864,-151.0,0.000175,2]
[335679646,1724424639875,-214.636255,0.000175,2]
[335679647,1724424639885,-650.91791073,0.000175,2]
[335679648,1724424639895,-1886.682576,0.000175,2]
[335679649,1724424639905,-151.0,0.000175,2]
[335679650,1724424639914,-1886.682576,0.000175,2]
[335679651,1724424639923,-151.0,0.000175,2]
[335679652,1724424639932,-990.779432,0.000175,2]
[335679653,1724424639941,-151.0,0.000175,2]
[335679654,1724424639950,-151.0,0.000175,2]
[335679655,1724424639960,-151.0,0.000175,2]
[335679656,1724424639969,-990.779432,0.000175,2]
[335679657,1724424639979,-151.0,0.000175,2]
[335679658,1724424639988,-151.0,0.000175,2]
[335679659,1724424639997,-504.879373,0.000175,2]
[335679661,1724424640007,-504.879373,0.000175,2]
[335679662,1724424640022,-152.359979,0.000175,2]
[335679663,1724424640033,-152.359979,0.000175,2]
[335679664,1724424640042,-321.792425,0.000175,2]
[335679665,1724424640051,-321.792425,0.000175,2]
[335679667,1724424640061,-151.0,0.000175,2]
[335679669,1724424640070,-215.266107,0.000175,2]
[335679670,1724424640079,-173.391805,0.000175,2]
[335679672,1724424640088,-151.0,0.000175,2]
[335679674,1724424640098,-173.391805,0.000175,2]
[335679676,1724424640108,-151.0,0.000175,2]
[335679679,1724424640117,-603.0,0.000175,2]
[335679681,1724424640126,-150.112233,0.000175,2]
[335679683,1724424640136,-150.112233,0.000175,2]
[335679685,1724424640146,-150.112233,0.000175,2]
[335679687,1724424640156,-3000.0,0.0001751,2]
[335679689,1724424640165,-44075.4221368,0.0001751,2]
[335679691,1724424640175,-3000.0,0.0001752,2]
[335679693,1724424640184,-6523.929697,0.0001752,2]
[335679695,1724424640193,-6523.929697,0.0001752,2]
[335679697,1724424640203,-3268.677555,0.0001752,2]
[335679699,1724424640212,-3268.677555,0.0001752,2]
[335679701,1724424640222,-4927.490832,0.0001752,2]
[335679703,1724424640232,-44075.4221368,0.0001752,2]
[335679705,1724424640242,-225.46226412,0.00017529,2]
[335679707,1724424640251,-500.0,0.00017529,2]
[335679709,1724424640268,-457.31303388,0.00017529,2]
[335679711,1724424640278,-500.0,0.00017529,2]
[335679713,1724424640287,-500.0,0.00017529,2]
[335679715,1724424640297,-500.0,0.00017529,2]
[335679717,1724424640307,-500.0,0.00017529,2]
[335679718,1724424640317,-500.0,0.00017529,2]
[335679719,1724424640326,-314.51947987,0.00017529,2]
[335679720,1724424640338,-500.0,0.00017529,2]
[335679721,1724424640348,-500.0,0.00017529,2]
[335679722,1724424640360,-500.0,0.00017529,2]
[335679723,1724424640371,-500.0,0.00017529,2]
[335679724,1724424640380,-500.0,0.00017529,2]
[335679725,1724424640391,-500.0,0.00017529,2]
[335679726,1724424640400,-598.34908493,0.00017529,2]
[335679727,1724424640410,-500.0,0.00017529,2]
[335679728,1724424640420,-500.0,0.00017529,2]
[335679729,1724424640429,-2551.847542,0.0001753,2]
[335679730,1724424640438,-2551.847542,0.0001753,2]
[335679731,1724424640448,-2847.328353,0.0001753,2]
[335679732,1724424640458,-2847.328353,0.0001753,2]
[335679733,1724424640468,-219.155997,0.0001753,2]
[335679734,1724424640478,-151.0,0.0001753,2]
[335679735,1724424640487,-219.155997,0.0001753,2]
[335679737,1724424640497,-151.0,0.0001753,2]
[335679739,1724424640506,-3000.0,0.0001753,2]
[335679741,1724424640520,-824.774778,0.0001753,2]
[335679743,1724424640530,-824.774778,0.0001753,2]
[335679745,1724424640539,-2219.405517,0.0001753,2]
[335679747,1724424640549,-2219.405517,0.0001753,2]
[335679749,1724424640559,-2435.285103,0.0001753,2]
[335679751,1724424640569,-2435.285103,0.0001753,2]
[335679753,1724424640579,-151.0,0.0001753,2]
[335679755,1724424640588,-3007.864424,0.0001753,2]
[335679757,1724424640597,-3007.864424,0.0001753,2]
[335679759,1724424640607,-214.636255,0.0001753,2]
[335679761,1724424640616,-151.0,0.0001753,2]
[335679763,1724424640625,-214.636255,0.0001753,2]
[335679765,1724424640635,-1886.682576,0.0001753,2]
[335679767,1724424640644,-151.0,0.0001753,2]
[335679769,1724424640653,-1886.682576,0.0001753,2]
[335679771,1724424640663,-151.0,0.0001753,2]
[335679773,1724424640672,-990.779432,0.0001753,2]
[335679775,1724424640681,-151.0,0.0001753,2]
[335679777,1724424640690,-151.0,0.0001753,2]
[335679779,1724424640700,-151.0,0.0001753,2]
[335679781,1724424640709,-990.779432,0.0001753,2]
[335679783,1724424640719,-151.0,0.0001753,2]
[335679785,1724424640728,-504.879373,0.0001753,2]
[335679787,1724424640737,-504.879373,0.0001753,2]
[335679789,1724424640747,-152.359979,0.0001753,2]
[335679791,1724424640756,-152.359979,0.0001753,2]
[335679794,1724424640771,-151.0,0.0001753,2]
[335679796,1724424640781,-380.0,0.00017535,2]
[335679798,1724424640790,-3000.0,0.0001754,2]
[335679800,1724424640799,-158.992795,0.00017544,2]
[335679802,1724424640809,-5966.81986354,0.0001755,9]
[335679804,1724424640819,-3000.0,0.0001755,2]
[335679806,1724424640830,-151.0,0.0001755,2]
[335679808,1724424640839,-321.792425,0.0001755,2]
[335679810,1724424640848,-321.792425,0.0001755,2]
[335679812,1724424640857,-173.391805,0.0001755,2]
[335679814,1724424640866,-151.0,0.0001755,2]
[335679815,1724424640876,-173.391805,0.0001755,2]
[335679817,1724424640885,-151.0,0.0001755,2]
[335679819,1724424640894,-3000.0,0.0001756,2]
[335679821,1724424640904,-35360.48763731,0.00017565,2]
[335679825,1724424640926,-511.32640684,0.00017565,2]
[335679827,1724424640937,-8203.60809265,0.00017565,2]
[335679829,1724424640946,-156.119319,0.00017565,2]
[335679831,1724424640956,-156.119319,0.00017565,2]
[335679833,1724424640965,-151.0,0.00017565,2]
[335679835,1724424640975,-1438.519583,0.00017565,2]
[335679836,1724424640984,-1438.519583,0.00017565,2]
[335679839,1724424640994,-300.36319,0.00017565,2]
[335679841,1724424641004,-300.36319,0.00017565,2]
[335679843,1724424641017,-151.0,0.00017565,2]
[335679845,1724424641026,-220.987621,0.00017565,2]
[335679847,1724424641035,-220.987621,0.00017565,2]
[335679849,1724424641045,-3000.0,0.0001757,2]
[335679851,1724424641053,-275.994204,0.0001757,2]
[335679853,1724424641062,-275.994204,0.0001757,2]
[335679855,1724424641071,-151.0,0.0001757,2]
[335679857,1724424641080,-500.0,0.00017573,2]
[335679859,1724424641090,-500.0,0.00017573,2]
[335679861,1724424641098,-500.0,0.00017573,2]
[335679863,1724424641107,-500.0,0.00017573,2]
[335679865,1724424641117,-500.0,0.00017573,2]
[335679867,1724424641127,-200.29199372,0.00017573,2]
[335679869,1724424641135,-500.0,0.00017573,2]
[335679871,1724424641144,-150.0,0.00017575,2]
[335679873,1724424641153,-522.0,0.00017575,2]
[335679875,1724424641162,-1416.0,0.00017575,2]
[335679877,1724424641171,-150.0,0.00017575,2]
[335679878,1724424641180,-34208.0,0.00017575,2]
[335679880,1724424641189,-150.0,0.00017575,2]
[335679882,1724424641199,-151.0,0.00017575,2]
[335679884,1724424641208,-656.253367,0.00017575,2]
[335679886,1724424641217,-151.0,0.00017575,2]
[335679888,1724424641226,-656.253367,0.00017575,2]
[335679890,1724424641235,-151.0,0.00017575,2]
[335679892,1724424641243,-1738.547933,0.00017575,2]
[335679894,1724424641252,-1738.547933,0.00017575,2]
[335679896,1724424641264,-3750.431494,0.00017575,2]
[335679898,1724424641273,-3750.431494,0.00017575,2]
[335679900,1724424641282,-151.0,0.00017575,2]
[335679902,1724424641291,-3000.0,0.0001758,2]
[335679904,1724424641300,-3000.0,0.0001759,2]
[335679906,1724424641309,-7590.99588919,0.0001759,2]
[335679908,1724424641321,-36484.42624761,0.0001759,2]
[335679910,1724424641330,-1485.34022638,0.00017598,2]
[335679912,1724424641340,-60461.02581014,0.000176,2]
[335679914,1724424641349,-176.476235,0.000176,2]
[335679916,1724424641359,-176.476235,0.000176,2]
[335679918,1724424641368,-150.112233,0.000176,2]
[335679920,1724424641377,-150.112233,0.000176,2]
[335679922,1724424641387,-150.112235,0.000176,2]
[335679924,1724424641395,-151.0,0.000176,2]
[335679926,1724424641404,-151.0,0.000176,2]
[335679927,1724424641414,-1516.826158,0.000176,2]
[335679929,1724424641423,-1516.826158,0.000176,2]
[335679931,1724424641433,-151.0,0.000176,2]
[335679934,1724424641443,-343.568436,0.000176,2]
[335679935,1724424641452,-343.568436,0.000176,2]
[335679937,1724424641462,-2551.847542,0.000176,2]
[335679939,1724424641471,-2551.847542,0.000176,2]
[335679941,1724424641480,-2847.328353,0.000176,2]
[335679943,1724424641490,-2847.328353,0.000176,2]
[335679945,1724424641499,-219.155997,0.000176,2]
[335679947,1724424641508,-151.0,0.000176,2]
[335679949,1724424641521,-219.155997,0.000176,2]
[335679951,1724424641530,-151.0,0.000176,2]
[335679953,1724424641539,-3000.0,0.000176,2]
[335679955,1724424641549,-824.774778,0.000176,2]
[335679957,1724424641559,-824.774778,0.000176,2]
[335679959,1724424641568,-2219.405517,0.000176,2]
[335679961,1724424641576,-2219.405517,0.000176,2]
[335679963,1724424641585,-150.112233,0.000176,2]
[335679965,1724424641595,-150.112233,0.000176,2]
[335679967,1724424641604,-150.112233,0.000176,2]
[335679969,1724424641613,-150.112233,0.000176,2]
[335679971,1724424641622,-7273.859402,0.000176,2]
[335679973,1724424641631,-7273.859402,0.000176,2]
[335679975,1724424641640,-6523.929697,0.000176,2]
[335679977,1724424641649,-6523.929697,0.000176,2]
[335679979,1724424641658,-3268.677555,0.000176,2]
[335679981,1724424641668,-3268.677555,0.000176,2]
[335679983,1724424641677,-159.929082,0.000176,2]
[335679985,1724424641686,-159.929082,0.000176,2]
[335679987,1724424641695,-2435.285103,0.000176,2]
[335679989,1724424641704,-2435.285103,0.000176,2]
[335679991,1724424641716,-4927.490832,0.000176,2]
[335679993,1724424641725,-151.0,0.000176,2]
[335679995,1724424641735,-275.994204,0.000176,2]
[335679997,1724424641744,-275.994204,0.000176,2]
[335679999,1724424641753,-3007.864424,0.000176,2]
[335680001,1724424641764,-151.0,0.000176,2]
[335680003,1724424641774,-3007.864424,0.000176,2]
[335680005,1724424641787,-214.636255,0.000176,2]
[335680007,1724424641796,-151.0,0.000176,2]
[335680009,1724424641805,-214.636255,0.000176,2]
[335680011,1724424641814,-1886.682576,0.000176,2]
[335680013,1724424641824,-151.0,0.000176,2]
[335680015,1724424641833,-1886.682576,0.000176,2]
[335680017,1724424641843,-151.0,0.000176,2]
[335680019,1724424641852,-990.779432,0.000176,2]
[335680021,1724424641861,-151.0,0.000176,2]
[335680023,1724424641870,-151.0,0.000176,2]
[335680025,1724424641880,-151.0,0.000176,2]
[335680027,1724424641890,-990.779432,0.000176,2]
[335680029,1724424641900,-151.0,0.000176,2]
[335680031,1724424641910,-151.0,0.000176,2]
[335680033,1724424641919,-504.879373,0.000176,2]
[335680035,1724424641928,-504.879373,0.000176,2]
[335680037,1724424641940,-152.359979,0.000176,2]
[335680040,1724424641949,-152.359979,0.000176,2]
[335680042,1724424641958,-321.792425,0.000176,2]
[335680044,1724424641967,-321.792425,0.000176,2]
[335680046,1724424641976,-151.0,0.000176,2]
[335680047,1724424641985,-173.391805,0.000176,2]
[335680049,1724424641995,-151.0,0.000176,2]
[335680051,1724424642004,-173.391805,0.000176,2]
[335680053,1724424642020,-172.802064,0.000176,2]
[335680055,1724424642029,-151.0,0.000176,2]
[335680057,1724424642040,-656.253367,0.000176,2]
[335680059,1724424642049,-151.0,0.000176,2]
[335680061,1724424642059,-153.0,0.000176,2]
[335680063,1724424642068,-656.253367,0.000176,2]
[335680065,1724424642077,-151.0,0.000176,2]
[335680067,1724424642086,-1738.547933,0.000176,2]
[335680069,1724424642096,-1738.547933,0.000176,2]
[335680071,1724424642104,-207.7006306,0.000176,2]
[335680073,1724424642113,-153.0,0.000176,2]
[335680075,1724424642123,-3750.431494,0.000176,2]
[335680077,1724424642133,-3750.431494,0.000176,2]
[335680079,1724424642143,-263.732356,0.000176,2]
[335680081,1724424642152,-150.112233,0.000176,2]
[335680083,1724424642161,-150.112233,0.000176,2]
[335680085,1724424642170,-150.112233,0.000176,2]
[335680087,1724424642179,-150.112233,0.000176,2]
[335680089,1724424642188,-150.112233,0.000176,2]
[335680091,1724424642197,-156.119319,0.000176,2]